bitfinex/quotes_BTCUSD_20220306
["timestamp","ask_amount","ask_price","bid_price","bid_amount"]
[1646594188993,0.00102513,38814.0,38812.0,0.30302931]
[1646594189193,0.00102513,38814.0,38813.0,0.005283]
[1646594190495,0.00102513,38814.0,38812.0,0.57866924]
[1646594191399,0.00102513,38814.0,38812.0,0.51422924]
[1646594191595,0.00102513,38814.0,38812.0,0.30302931]
[1646594192228,0.00102513,38814.0,38812.0,0.27802931]
[1646594193229,0.00102513,38814.0,38813.0,0.0349381]
[1646594193430,0.00102513,38814.0,38812.0,0.48922924]
[1646594194532,0.20815285,38819.0,38812.0,0.48922924]
[1646594194931,0.002,38817.0,38812.0,0.48922924]
[1646594196178,0.20815285,38819.0,38812.0,0.48922924]
[1646594196780,0.50815285,38818.0,38812.0,0.27802931]
[1646594197783,0.57260442,38818.0,38812.0,0.27802931]
[1646594198983,0.59408585,38813.0,38812.0,0.27802931]
[1646594199184,0.59408585,38813.0,38806.0,0.001]
[1646594199185,0.00252648,38811.0,38806.0,0.001]
[1646594199384,0.00252648,38811.0,38802.0,0.21234809]
[1646594199385,0.385933,38803.0,38802.0,0.21234809]
[1646594199582,0.385933,38803.0,38802.0,0.0013758]
[1646594199843,0.54073748,38803.0,38802.0,0.0013758]
[1646594200040,0.785933,38803.0,38802.0,0.0013758]
[1646594200445,0.785933,38803.0,38802.0,0.001]
[1646594200840,0.485933,38803.0,38802.0,0.001]
[1646594205184,0.48130984,38803.0,38802.0,0.001]
[1646594206687,0.78130984,38803.0,38802.0,0.001]
[1646594207331,1.05,38802.0,38800.0,0.00421307]
[1646594207531,0.3,38801.0,38800.0,0.00421307]
[1646594207735,0.685939,38801.0,38800.0,0.00421307]
[1646594209935,1.335939,38800.0,38799.0,0.00121307]
[1646594210133,0.95,38800.0,38799.0,0.00121307]
[1646594210337,1.25,38800.0,38799.0,0.00121307]
[1646594210535,0.685939,38800.0,38799.0,0.00121307]
[1646594212602,0.785939,38800.0,38799.0,0.00121307]
[1646594214001,0.78682477,38800.0,38799.0,0.00121307]
[1646594221387,0.10088577,38800.0,38799.0,0.00121307]
[1646594221587,0.48682477,38800.0,38799.0,0.00121307]
[1646594221788,0.10088577,38800.0,38799.0,0.00121307]
[1646594222438,0.48682477,38800.0,38799.0,0.00121307]
[1646594223747,0.00088577,38800.0,38798.0,0.00041581]
[1646594224141,0.00088577,38800.0,38799.0,0.009933]
[1646594224340,0.00045043,38804.0,38799.0,0.009933]
[1646594224541,0.00045043,38804.0,38801.0,0.064453]
[1646594224739,0.00045043,38804.0,38800.0,0.064455]
[1646594224940,0.00045043,38804.0,38799.0,0.009929]
[1646594225143,0.00045043,38804.0,38798.0,0.25360871]
[1646594225343,0.00045043,38804.0,38803.0,0.2051023]
[1646594225743,0.00045043,38804.0,38803.0,0.40665594]
[1646594226190,0.00045043,38804.0,38803.0,0.55665594]
[1646594226393,0.00252648,38811.0,38804.0,1.085644]
[1646594226591,0.00252648,38811.0,38806.0,0.20585011]
[1646594226793,0.97557638,38822.0,38811.0,0.01293686]
[1646594226794,0.18231327,38822.0,38811.0,0.01293686]
[1646594226992,0.03866889,38822.0,38812.0,0.340351]
[1646594227289,0.03866889,38822.0,38814.0,0.009898]
[1646594227790,0.03866889,38822.0,38818.0,0.35772941]
[1646594227988,0.17500713,38827.0,38819.0,0.009891]
[1646594228191,0.17500713,38827.0,38818.0,0.35772941]
[1646594228192,0.0394449,38827.0,38818.0,0.19765435]
[1646594228389,0.00012495,38822.0,38819.0,0.009886]
[1646594229389,0.45,38822.0,38814.0,0.167131]
[1646594229590,0.00012495,38822.0,38814.0,0.167131]
[1646594230233,0.00012495,38822.0,38815.0,0.064433]
[1646594230436,0.001,38823.0,38815.0,0.24059782]
[1646594230834,0.00021765,38820.0,38815.0,0.24059782]
[1646594231740,0.001,38823.0,38815.0,0.24059782]
[1646594231935,0.00021765,38819.0,38815.0,0.24059782]
[1646594232936,0.001,38823.0,38815.0,0.24059782]
[1646594233140,0.3,38826.0,38816.0,0.06443]
[1646594233336,0.3,38826.0,38819.0,0.064428]
[1646594233337,0.4,38826.0,38819.0,0.064428]
[1646594233985,0.4,38826.0,38815.0,0.17616482]
[1646594234492,0.00021764,38824.0,38815.0,0.17616482]
[1646594234887,0.06465946,38824.0,38815.0,0.17616482]
[1646594235086,0.3,38823.0,38815.0,0.17616482]
[1646594235487,0.00021301,38821.0,38815.0,0.17616482]
[1646594236489,0.3,38825.0,38815.0,0.17616482]
[1646594236689,0.00021301,38820.0,38815.0,0.17616482]
[1646594237736,0.3,38822.0,38815.0,0.17616482]
[1646594237934,0.00021302,38819.0,38815.0,0.17616482]
[1646594238932,0.3,38822.0,38815.0,0.17616482]
[1646594239134,0.00020227,38819.0,38815.0,0.17616482]
[1646594240133,0.3,38822.0,38815.0,0.17616482]
[1646594240335,0.00020227,38819.0,38815.0,0.17616482]
[1646594240538,0.29950924,38822.0,38815.0,0.17616482]
[1646594240834,0.3,38826.0,38815.0,0.17616482]
[1646594241303,0.4,38826.0,38815.0,0.17616482]
[1646594241501,0.4,38826.0,38815.0,0.24059782]
[1646594241702,0.18979291,38823.0,38815.0,0.17616482]
[1646594242005,0.3,38822.0,38815.0,0.17616482]
[1646594242202,0.16443553,38826.0,38815.0,0.17616482]
[1646594242203,0.3,38825.0,38815.0,0.17616482]
[1646594242802,0.17296083,38823.0,38815.0,0.17616482]
[1646594243102,0.3,38822.0,38815.0,0.17616482]
[1646594243400,0.17296083,38823.0,38815.0,0.17616482]
[1646594243601,0.3,38825.0,38815.0,0.17616482]
[1646594244001,0.00020317,38821.0,38815.0,0.17616482]
[1646594245039,0.3,38825.0,38815.0,0.17616482]
[1646594245238,0.00020317,38821.0,38815.0,0.17616482]
[1646594246041,0.3,38825.0,38815.0,0.17616482]
[1646594246342,0.0002031,38821.0,38815.0,0.17616482]
[1646594247243,0.3,38823.0,38815.0,0.17616482]
[1646594247641,0.0002031,38821.0,38815.0,0.17616482]
[1646594248480,0.3,38823.0,38815.0,0.17616482]
[1646594248886,0.0002031,38821.0,38815.0,0.17616482]
[1646594249782,0.3,38823.0,38815.0,0.17616482]
[1646594249985,0.00020311,38821.0,38815.0,0.17616482]
[1646594250882,0.3,38825.0,38815.0,0.17616482]
[1646594251084,0.00020311,38821.0,38815.0,0.17616482]
[1646594251888,0.00020311,38821.0,38816.0,0.19328892]
[1646594252087,0.3,38825.0,38816.0,0.19328892]
[1646594252359,0.39238,38830.0,38817.0,0.0516]
[1646594252360,0.00020311,38821.0,38817.0,0.0516]
[1646594252560,0.00020311,38821.0,38819.0,0.01204615]
[1646594252753,0.00020311,38821.0,38820.0,0.0516]
[1646594252953,0.00020311,38821.0,38820.0,0.24711607]
[1646594253254,0.00020311,38821.0,38820.0,1.05323607]
[1646594253464,0.3,38837.0,38821.0,0.00020427]
[1646594253654,0.00081214,38836.0,38823.0,0.80612]
[1646594253954,0.17722857,38836.0,38830.0,0.17787518]
[1646594254153,0.17722857,38836.0,38830.0,0.24228018]
[1646594254656,0.17641643,38836.0,38829.0,0.128805]
[1646594254857,0.30020308,38835.0,38825.0,0.0516]
[1646594255062,0.30020308,38835.0,38825.0,0.002]
[1646594255659,0.3,38835.0,38825.0,0.002]
[1646594256098,0.00020309,38832.0,38825.0,0.002]
[1646594256295,0.00020309,38832.0,38823.0,0.16535211]
[1646594256896,0.3,38835.0,38825.0,0.18034919]
[1646594257195,0.00021352,38829.0,38825.0,0.18034919]
[1646594257601,0.00021352,38829.0,38823.0,0.15968653]
[1646594258096,0.16882609,38830.0,38823.0,0.15968653]
[1646594258295,0.00021353,38828.0,38823.0,0.15968653]
[1646594259498,0.15623226,38831.0,38821.0,0.20629599]
[1646594259749,0.00021353,38827.0,38821.0,0.20629599]
[1646594259949,0.00021353,38827.0,38825.0,0.11270545]
[1646594260150,0.00021353,38827.0,38826.0,0.11270545]
[1646594260549,0.15623226,38831.0,38826.0,0.11270545]
[1646594260747,0.06442676,38832.0,38821.0,0.3844669]
[1646594260748,0.00020265,38828.0,38821.0,0.3844669]
[1646594260949,0.00020265,38828.0,38821.0,0.20629599]
[1646594261148,0.00020265,38828.0,38822.0,0.003]
[1646594261749,0.301,38831.0,38822.0,0.003]
[1646594261950,0.15388836,38827.0,38822.0,0.003]
[1646594262248,0.00020265,38827.0,38826.0,0.11270545]
[1646594262852,0.00020265,38827.0,38821.0,0.20629599]
[1646594263052,0.004,38831.0,38821.0,0.20629599]
[1646594263353,0.00020265,38828.0,38821.0,0.20629599]
[1646594263888,0.00020265,38828.0,38821.0,0.00020427]
[1646594264282,0.3,38829.0,38821.0,0.00020427]
[1646594264582,0.0002037,38826.0,38821.0,0.00020427]
[1646594264784,0.17038885,38824.0,38821.0,0.00020427]
[1646594265583,0.00020371,38824.0,38821.0,0.00020427]
[1646594266583,0.06443053,38830.0,38821.0,0.00020427]
[1646594266784,0.3,38829.0,38821.0,0.00020427]
[1646594266985,0.00020371,38824.0,38821.0,0.00020427]
[1646594267754,0.18024775,38828.0,38821.0,0.00020427]
[1646594268054,0.17812644,38833.0,38822.0,0.064417]
[1646594268055,0.0002036,38824.0,38822.0,0.064417]
[1646594268547,0.0002036,38824.0,38823.0,0.064415]
[1646594268950,0.50830749,38832.0,38823.0,0.18457088]
[1646594269250,0.0002036,38825.0,38823.0,0.18457088]
[1646594270248,0.003,38826.0,38823.0,0.18457088]
[1646594270454,0.0032036,38826.0,38823.0,0.18457088]
[1646594271583,0.00320361,38826.0,38823.0,0.18457088]
[1646594271785,0.00320361,38826.0,38823.0,0.24898538]
[1646594271982,0.00320361,38826.0,38824.0,0.064415]
[1646594272282,0.00320361,38826.0,38824.0,0.27376287]
[1646594272481,0.00020361,38826.0,38824.0,0.27376287]
[1646594272684,0.20716489,38831.0,38825.0,0.064414]
[1646594272884,0.00020361,38827.0,38825.0,0.064414]
[1646594273486,0.00020361,38827.0,38826.0,0.064414]
[1646594273885,0.20716489,38831.0,38826.0,0.064414]
[1646594274087,0.0002036,38828.0,38826.0,0.064414]
[1646594275037,0.3,38832.0,38826.0,0.064414]
[1646594275236,0.0002036,38829.0,38826.0,0.064414]
[1646594276239,0.51530749,38834.0,38828.0,0.064412]
[1646594276440,0.0002036,38829.0,38828.0,0.064412]
[1646594277339,0.006,38832.0,38828.0,0.064412]
[1646594277738,0.0002036,38830.0,38828.0,0.064412]
[1646594278582,0.19260364,38833.0,38825.0,0.193232]
[1646594278783,0.0002036,38831.0,38826.0,0.0516]
[1646594279381,0.0002036,38831.0,38827.0,0.064413]
[1646594279581,0.0002036,38831.0,38826.0,0.0516]
[1646594279784,0.19260364,38833.0,38826.0,0.0516]
[1646594280184,0.0002036,38831.0,38826.0,0.0516]
[1646594280385,0.0002036,38831.0,38827.0,0.064413]
[1646594280787,0.0002036,38831.0,38825.0,0.193232]
[1646594280982,0.19260364,38833.0,38825.0,0.193232]
[1646594281183,0.0002036,38831.0,38825.0,0.193232]
[1646594281583,0.0002036,38831.0,38827.0,0.064413]
[1646594281984,0.0002036,38831.0,38827.0,0.064411]
[1646594282232,0.001,38832.0,38827.0,0.064411]
[1646594282436,0.0002036,38831.0,38827.0,0.064411]
[1646594282632,0.0002036,38831.0,38829.0,0.15623426]
[1646594282834,0.0002036,38831.0,38829.0,0.15616832]
[1646594283037,0.0002036,38831.0,38825.0,0.128818]
[1646594283234,0.0002036,38831.0,38827.0,0.064413]
[1646594283438,0.302,38834.0,38825.0,0.257632]
[1646594283635,0.002,38834.0,38830.0,0.20661279]
[1646594284133,0.002,38834.0,38830.0,0.20161279]
[1646594284335,0.002,38834.0,38825.0,0.309232]
[1646594284534,0.3,38836.0,38825.0,0.309232]
[1646594284736,0.3,38836.0,38825.0,0.37401617]
[1646594284934,0.0002036,38831.0,38825.0,0.24519817]
[1646594285534,0.0002036,38831.0,38825.0,0.44139944]
[1646594285735,0.19555217,38831.0,38825.0,0.38979944]
[1646594285985,0.0002036,38830.0,38825.0,0.38979944]
[1646594286986,0.19534857,38831.0,38825.0,0.38979944]
[1646594287185,0.19534857,38831.0,38825.0,0.19620127]
[1646594287386,0.0002036,38829.0,38825.0,0.19620127]
[1646594288187,0.19534857,38831.0,38825.0,0.19620127]
[1646594288386,0.0002036,38829.0,38825.0,0.19620127]
[1646594288987,0.0002036,38829.0,38822.0,0.01286]
[1646594289487,0.1945276,38835.0,38831.0,0.06810049]
[1646594289734,0.40368512,38836.0,38831.0,0.06810049]
[1646594289932,0.20554689,38833.0,38831.0,0.06810049]
[1646594291633,0.00020359,38834.0,38831.0,0.06810049]
[1646594291834,0.21330749,38835.0,38831.0,0.06810049]
[1646594292035,0.00020359,38834.0,38831.0,0.06810049]
[1646594292934,0.21330749,38835.0,38831.0,0.06810049]
[1646594293335,0.00020359,38834.0,38831.0,0.06810049]
[1646594293792,0.19592663,38833.0,38831.0,0.06810049]
[1646594294188,0.20830749,38834.0,38831.0,0.06810049]
[1646594294386,0.20851108,38834.0,38831.0,0.06810049]
[1646594295386,0.20830749,38834.0,38831.0,0.06810049]
[1646594295787,0.20851108,38834.0,38831.0,0.06810049]
[1646594295986,0.20830749,38833.0,38831.0,0.06810049]
[1646594297748,0.20330749,38833.0,38831.0,0.06810049]
[1646594302890,0.06442288,38834.0,38831.0,0.06810049]
[1646594302891,0.51958397,38834.0,38831.0,0.06810049]
[1646594303291,0.55030397,38834.0,38831.0,0.06810049]
[1646594303493,0.661649,38833.0,38831.0,0.06810049]
[1646594303692,0.737529,38832.0,38831.0,0.06810049]
[1646594303895,0.801969,38832.0,38831.0,0.06810049]
[1646594304091,1.67986231,38832.0,38831.0,0.06810049]
[1646594304295,1.67674637,38832.0,38831.0,0.00810049]
[1646594304491,1.67674637,38832.0,38822.0,0.01286]
[1646594304492,1.07572,38831.0,38822.0,0.01286]
[1646594304750,0.02572,38825.0,38822.0,0.01286]
[1646594305050,0.73655586,38824.0,38821.0,0.00020427]
[1646594305249,0.385929,38822.0,38821.0,0.00020427]
[1646594305450,0.685929,38822.0,38821.0,0.00020427]
[1646594305652,0.785929,38822.0,38821.0,0.00020427]
[1646594305947,0.97259941,38822.0,38821.0,0.00020427]
[1646594306147,1.23305627,38822.0,38821.0,0.00020427]
[1646594306348,0.97259941,38822.0,38821.0,0.00020427]
[1646594306547,0.58667041,38822.0,38821.0,0.00020427]
[1646594306949,0.97259941,38822.0,38821.0,0.00020427]
[1646594307146,0.58667041,38822.0,38821.0,0.00020427]
[1646594307449,0.97259941,38822.0,38821.0,0.00020427]
[1646594307647,1.08318087,38822.0,38821.0,0.00020427]
[1646594308795,1.23318087,38822.0,38821.0,0.00020427]
[1646594310397,1.44135145,38822.0,38821.0,0.00020427]
[1646594312343,1.23318087,38822.0,38821.0,0.00020427]
[1646594312840,0.69725187,38822.0,38821.0,0.00020427]
[1646594313240,0.78318087,38822.0,38821.0,0.00020427]
[1646594313444,1.08318087,38822.0,38821.0,0.00020427]
[1646594313841,0.69725187,38822.0,38821.0,0.00020427]
[1646594314244,0.90542245,38822.0,38821.0,0.00020427]
[1646594315344,0.69725187,38822.0,38821.0,0.00020427]
[1646594315544,0.9053922,38822.0,38821.0,0.00020427]
[1646594316182,1.2913212,38822.0,38821.0,0.00020427]
[1646594318783,1.08318087,38822.0,38821.0,0.00020427]
[1646594318981,0.69725187,38822.0,38821.0,0.00020427]
[1646594319281,1.08318087,38822.0,38821.0,0.00020427]
[1646594320339,1.20991677,38822.0,38821.0,0.00020427]
[1646594320542,2.20991677,38822.0,38821.0,0.00020427]
[1646594320740,2.08318087,38822.0,38821.0,0.00020427]
[1646594321439,2.20986129,38822.0,38821.0,0.00020427]
[1646594323043,2.08318087,38822.0,38821.0,0.00020427]
[1646594324388,2.29114891,38822.0,38821.0,0.00020427]
[1646594324587,1.69725187,38822.0,38821.0,0.00020427]
[1646594324791,1.9052108,38822.0,38821.0,0.00020427]
[1646594325890,2.2911398,38822.0,38821.0,0.00020427]
[1646594326289,2.2911398,38822.0,38821.0,0.00012572]
[1646594326692,2.2911398,38822.0,38803.0,0.01286]
[1646594326693,0.02572,38821.0,38803.0,0.01286]
[1646594326895,0.02572,38821.0,38809.0,0.00020369]
[1646594326896,0.090196,38813.0,38809.0,0.00020369]
[1646594327093,0.763249,38812.0,38809.0,0.00020369]
[1646594327349,0.12572,38811.0,38809.0,0.00020369]
[1646594327545,0.737529,38810.0,38809.0,0.00020369]
[1646594327743,1.06216417,38810.0,38809.0,0.00020369]
[1646594327945,0.09019973,38809.0,38808.0,7.919e-05]
[1646594328145,0.92772873,38809.0,38808.0,7.919e-05]
[1646594329145,0.92772873,38809.0,38807.0,7.92e-05]
[1646594329146,0.02572,38808.0,38807.0,7.92e-05]
[1646594329345,0.80201,38808.0,38807.0,7.92e-05]
[1646594329743,0.90201,38808.0,38807.0,7.92e-05]
[1646594330445,0.45040573,38806.0,38803.0,0.01286]
[1646594330646,0.80200573,38806.0,38803.0,0.01286]
[1646594330847,0.385929,38804.0,38803.0,0.01286]
[1646594331285,0.485929,38804.0,38803.0,0.01286]
[1646594331685,0.1,38804.0,38803.0,0.01286]
[1646594332184,0.385929,38804.0,38803.0,0.01286]
[1646594332588,0.485929,38804.0,38803.0,0.01286]
[1646594333887,0.485929,38804.0,38803.0,0.00786]
[1646594334488,0.1,38804.0,38803.0,0.00786]
[1646594334759,0.1,38807.0,38803.0,0.00786]
[1646594334961,0.385929,38806.0,38803.0,0.00786]
[1646594335164,0.685929,38806.0,38803.0,0.00786]
[1646594335360,0.385929,38804.0,38803.0,0.0080728]
[1646594335560,0.685929,38804.0,38803.0,0.0080728]
[1646594335762,0.785929,38804.0,38803.0,0.0080728]
[1646594336060,0.93970507,38804.0,38803.0,0.0080728]
[1646594336260,0.93970507,38804.0,38803.0,0.00786]
[1646594336459,0.06447824,38803.0,38802.0,0.00020272]
[1646594336662,0.91488624,38803.0,38802.0,0.00020272]
[1646594336861,0.61488624,38803.0,38802.0,0.00020272]
[1646594337063,0.850408,38803.0,38802.0,0.00020272]
[1646594337464,0.550408,38803.0,38798.0,0.00021307]
[1646594337666,0.550408,38803.0,38801.0,0.00020273]
[1646594337667,0.36447753,38802.0,38801.0,0.00020273]
[1646594337864,0.45040653,38802.0,38801.0,0.00020273]
[1646594338492,0.06447753,38802.0,38801.0,0.00020273]
[1646594338693,0.06447753,38802.0,38799.0,0.15380471]
[1646594338892,0.06447753,38802.0,38800.0,0.00020273]
[1646594339292,0.1,38803.0,38800.0,0.00020273]
[1646594339491,0.104,38803.0,38800.0,0.00020273]
[1646594339692,0.004,38803.0,38800.0,0.00020273]
[1646594339892,0.104,38803.0,38799.0,0.14400744]
[1646594340091,0.104,38803.0,38800.0,0.00020341]
[1646594340693,0.1,38803.0,38800.0,0.00020341]
[1646594340891,0.06447102,38805.0,38800.0,0.00020341]
[1646594341091,0.06447102,38805.0,38799.0,0.14400744]
[1646594341992,0.06447102,38805.0,38798.0,0.00021307]
[1646594341993,0.128958,38803.0,38798.0,0.00021307]
[1646594342244,0.06447773,38802.0,38798.0,0.00021307]
[1646594342949,0.06435691,38802.0,38798.0,0.00021307]
[1646594343744,0.06435691,38802.0,38798.0,0.00043116]
[1646594344444,0.105,38803.0,38798.0,0.00043116]
[1646594344644,0.1,38803.0,38798.0,0.00021307]
[1646594344847,0.1,38807.0,38798.0,0.00043116]
[1646594345045,0.1,38808.0,38798.0,0.00043116]
[1646594345245,0.1182,38809.0,38798.0,0.00043116]
[1646594345449,0.005,38805.0,38798.0,0.00043116]
[1646594345848,0.005,38805.0,38798.0,0.00021307]
[1646594346092,0.005,38805.0,38798.0,0.00043116]
[1646594346492,0.005,38805.0,38803.0,0.16693887]
[1646594346695,0.0644659,38807.0,38801.0,0.63043622]
[1646594346893,0.3,38806.0,38801.0,0.63043622]
[1646594347494,0.385929,38805.0,38801.0,0.63043622]
[1646594347693,0.1,38804.0,38801.0,0.63043622]
[1646594347893,0.4,38806.0,38801.0,0.82773046]
[1646594348097,0.385929,38805.0,38801.0,0.82773046]
[1646594348294,0.1,38804.0,38801.0,0.82773046]
[1646594348497,0.46446958,38806.0,38801.0,0.82773046]
[1646594348796,0.46446958,38806.0,38801.0,1.01701291]
[1646594348797,0.1,38806.0,38801.0,1.01701291]
[1646594349398,0.1182,38809.0,38801.0,1.01701291]
[1646594349597,0.1182,38809.0,38801.0,0.45318033]
[1646594352042,0.1182,38809.0,38807.0,0.1789755]
[1646594352239,0.1182,38809.0,38807.0,0.00968342]
[1646594352240,0.1,38809.0,38807.0,0.00968342]
[1646594353256,0.62361769,38813.0,38810.0,0.16134957]
[1646594353257,0.1152,38813.0,38810.0,0.16134957]
[1646594353502,0.00020969,38812.0,38810.0,0.15634957]
[1646594354306,0.007,38815.0,38810.0,0.15634957]
[1646594354704,0.0002097,38813.0,38810.0,0.15634957]
[1646594355305,0.0002097,38813.0,38807.0,0.00968342]
[1646594355503,0.30064892,38815.0,38804.0,0.0516]
[1646594355909,0.00020369,38813.0,38804.0,0.0516]
[1646594356306,0.00020369,38813.0,38803.0,0.1201]
[1646594356506,0.19283453,38809.0,38803.0,0.1201]
[1646594356905,0.19283453,38809.0,38801.0,0.23402667]
[1646594358757,0.30064892,38811.0,38804.0,0.16689636]
[1646594360159,0.16426544,38810.0,38804.0,0.16689636]
[1646594360361,0.30064892,38811.0,38804.0,0.16689636]
[1646594361491,0.19465575,38810.0,38804.0,0.16689636]
[1646594361691,0.30064892,38811.0,38804.0,0.16689636]
[1646594364396,0.16919644,38812.0,38804.0,0.16689636]
[1646594364594,0.00020331,38812.0,38804.0,0.16689636]
[1646594364844,0.00020331,38812.0,38808.0,0.21847087]
[1646594365044,0.30795893,38814.0,38808.0,0.21847087]
[1646594365246,0.30795893,38815.0,38808.0,0.21847087]
[1646594365444,0.30795893,38815.0,38811.0,0.18509999]
[1646594365445,0.00020331,38812.0,38811.0,0.18509999]
[1646594366347,0.1,38816.0,38811.0,0.18509999]
[1646594366546,0.1,38816.0,38814.0,0.20445575]
[1646594367150,0.30064892,38820.0,38814.0,0.20445575]
[1646594367151,0.20795893,38820.0,38814.0,0.20445575]
[1646594367347,0.20795893,38821.0,38814.0,0.20445575]
[1646594367748,0.33705893,38822.0,38814.0,0.20445575]
[1646594367949,0.0002039,38819.0,38814.0,0.20445575]
[1646594368147,0.0002039,38819.0,38811.0,0.18509999]
[1646594368347,0.0002039,38819.0,38811.0,0.23669999]
[1646594368592,0.30085282,38819.0,38811.0,0.0516]
[1646594368792,0.30064892,38819.0,38811.0,0.0516]
[1646594368986,0.16849894,38820.0,38811.0,0.0516]
[1646594369289,0.0002039,38817.0,38811.0,0.0516]
[1646594369486,0.0002039,38817.0,38810.0,0.20265516]
[1646594369487,0.20263445,38813.0,38808.0,0.30064892]
[1646594369689,0.0002039,38817.0,38807.0,0.003]
[1646594370088,0.60772088,38820.0,38807.0,0.003]
[1646594370290,0.00020383,38814.0,38807.0,0.003]
[1646594370691,0.18079139,38810.0,38805.0,0.15427843]
[1646594372091,0.00020382,38812.0,38805.0,0.15427843]
[1646594372349,0.20795893,38816.0,38805.0,0.15427843]
[1646594372548,0.35847893,38817.0,38805.0,0.15427843]
[1646594372748,0.00020383,38812.0,38805.0,0.15427843]
[1646594373149,0.15723908,38812.0,38805.0,0.15427843]
[1646594373346,0.00020383,38812.0,38805.0,0.15427843]
[1646594373547,0.1644559,38816.0,38805.0,0.15427843]
[1646594373951,0.00020384,38812.0,38805.0,0.15427843]
[1646594374348,0.00020384,38812.0,38805.0,0.21872843]
[1646594374948,0.1,38816.0,38805.0,0.21872843]
[1646594375150,0.00020384,38812.0,38807.0,0.064447]
[1646594375349,0.00020384,38812.0,38811.0,0.19470079]
[1646594376095,0.1248,38817.0,38811.0,0.46041327]
[1646594376295,0.00020384,38813.0,38811.0,0.46041327]
[1646594376499,0.00020384,38813.0,38812.0,0.064438]
[1646594376897,0.00020384,38813.0,38812.0,0.36508692]
[1646594377295,0.32405893,38822.0,38812.0,0.36508692]
[1646594377498,0.1161,38822.0,38815.0,0.06443]
[1646594378296,0.1161,38822.0,38818.0,0.35065516]
[1646594378499,0.1161,38822.0,38818.0,0.17433633]
[1646594378697,0.00020382,38820.0,38818.0,0.17433633]
[1646594379495,0.00020382,38820.0,38816.0,0.04657403]
[1646594379740,0.2065791,38823.0,38814.0,0.17262825]
[1646594379942,0.00020382,38821.0,38814.0,0.17262825]
[1646594380542,0.00020382,38821.0,38817.0,0.19454545]
[1646594380744,0.2065791,38823.0,38817.0,0.19454545]
[1646594381143,0.00020382,38821.0,38817.0,0.19454545]
[1646594381944,0.3227,38825.0,38817.0,0.19454545]
[1646594382244,0.00020382,38821.0,38817.0,0.19454545]
[1646594382445,0.00020382,38821.0,38817.0,0.25897645]
[1646594383243,0.29177629,38824.0,38817.0,0.25897645]
[1646594383495,0.00020382,38821.0,38817.0,0.25897645]
[1646594384097,0.00020382,38821.0,38811.0,0.3]
[1646594384301,0.00020382,38821.0,38806.0,0.34005589]
[1646594384302,0.00020382,38821.0,38807.0,0.6982]
[1646594384496,0.29927434,38823.0,38807.0,0.6982]
[1646594384497,0.50723327,38823.0,38807.0,0.6982]
[1646594384695,0.00020383,38818.0,38807.0,0.6982]
[1646594384894,0.00020383,38818.0,38807.0,0.8482]
[1646594385095,0.21389343,38817.0,38809.0,0.16097288]
[1646594385295,0.00020383,38818.0,38810.0,0.3]
[1646594385696,0.2194,38824.0,38810.0,0.3]
[1646594385894,0.00020383,38816.0,38810.0,0.3]
[1646594386297,0.00020383,38816.0,38811.0,0.16876585]
[1646594386494,0.00020383,38816.0,38812.0,0.364434]
[1646594386899,0.2194,38824.0,38812.0,0.364434]
[1646594387096,0.00020383,38816.0,38812.0,0.364434]
[1646594387352,0.00020383,38816.0,38812.0,0.428865]
[1646594387560,0.00020383,38816.0,38813.0,0.34804009]
[1646594387852,0.00020383,38816.0,38814.0,0.42885467]
[1646594388053,0.1194,38824.0,38815.0,0.3]
[1646594388353,0.1194,38824.0,38822.0,0.20023352]
[1646594388853,0.1,38827.0,38822.0,0.20023352]
[1646594389153,0.1,38827.0,38822.0,0.26465552]
[1646594389352,0.1,38831.0,38822.0,0.26465552]
[1646594389558,0.00020381,38826.0,38822.0,0.26465552]
[1646594389954,0.00020381,38826.0,38823.0,0.3]
[1646594390352,0.00020381,38826.0,38825.0,0.2216373]
[1646594390552,0.007,38830.0,38828.0,0.15921693]
[1646594390754,0.32703557,38833.0,38825.0,0.2216373]
[1646594391396,0.1186,38833.0,38825.0,0.2216373]
[1646594391998,0.1186,38833.0,38828.0,0.1543772]
[1646594391999,0.00018826,38831.0,38828.0,0.1543772]
[1646594392998,0.21034078,38832.0,38828.0,0.1543772]
[1646594393197,0.00018826,38831.0,38825.0,0.128832]
[1646594393397,0.00018826,38831.0,38823.0,0.064422]
[1646594393598,0.00018826,38831.0,38822.0,0.3]
[1646594393599,0.00018826,38831.0,38821.0,0.128834]
[1646594393997,0.29971953,38831.0,38821.0,0.128834]
[1646594394198,0.299477,38831.0,38823.0,0.18685363]
[1646594394397,0.00018827,38828.0,38823.0,0.18685363]
[1646594395239,0.17327974,38829.0,38823.0,0.18685363]
[1646594395638,0.00019612,38827.0,38823.0,0.18685363]
[1646594396439,0.17327974,38829.0,38823.0,0.18685363]
[1646594396638,0.36390492,38833.0,38823.0,0.18685363]
[1646594396841,0.00019701,38827.0,38823.0,0.18685363]
[1646594397640,0.19205257,38829.0,38823.0,0.18685363]
[1646594397940,0.00019701,38827.0,38823.0,0.18685363]
[1646594398511,0.00019701,38827.0,38824.0,0.064419]
[1646594398918,0.29955957,38833.0,38823.0,0.18685363]
[1646594399113,0.00020262,38827.0,38823.0,0.18685363]
[1646594400118,0.005,38830.0,38823.0,0.18685363]
[1646594400415,0.00020228,38827.0,38823.0,0.18685363]
[1646594401214,0.18384185,38829.0,38823.0,0.18685363]
[1646594401616,0.00020228,38827.0,38823.0,0.18685363]
[1646594402440,0.001,38828.0,38823.0,0.18678291]
[1646594402645,0.001,38828.0,38820.0,0.3]
[1646594402941,0.00020302,38827.0,38819.0,0.18127342]
[1646594403540,0.00020302,38827.0,38820.0,0.3]
[1646594403742,0.21163704,38829.0,38825.0,0.1811555]
[1646594404541,0.21163704,38829.0,38821.0,0.064424]
[1646594405145,0.00020287,38827.0,38821.0,0.064424]
[1646594405544,0.00020287,38827.0,38825.0,0.16528371]
[1646594406196,0.02572,38833.0,38825.0,0.16528371]
[1646594406395,0.00019507,38828.0,38825.0,0.16528371]
[1646594407396,0.20073503,38831.0,38825.0,0.16528371]
[1646594407596,0.00019506,38828.0,38825.0,0.16528371]
[1646594407800,0.00019506,38828.0,38821.0,0.064424]
[1646594407998,0.00019506,38828.0,38819.0,0.18127342]
[1646594408599,0.20073503,38831.0,38819.0,0.18127342]
[1646594408798,0.00019506,38825.0,38821.0,0.20302361]
[1646594409599,0.001,38826.0,38825.0,0.00023672]
[1646594410841,0.06443586,38827.0,38825.0,0.00023672]
[1646594411241,0.20768788,38826.0,38825.0,0.00023672]
[1646594411841,0.06454612,38827.0,38825.0,0.00023672]